bitfinex-derivatives/quotes_SOLF0:USTF0_20250829
["timestamp","ask_amount","ask_price","bid_price","bid_amount"]
[1756428377991,4.9,215.34,215.22,72.7529]
[1756428378187,4.9,215.41,215.29,65.0223]
[1756428378388,4.9,215.41,215.3,7.71]
[1756428378593,9.0769,215.46,215.33,0.03271847]
[1756428378787,4.9,215.46,215.35,65.0038]
[1756428379189,4.9,215.46,215.34,7.71]
[1756428379393,4.9,215.46,215.35,65.0025]
[1756428379586,312.28,215.5,215.38,0.03164741]
[1756428380389,4.12823216,215.47,215.38,0.03164741]
[1756428380588,9.02823216,215.47,215.38,0.03164741]
[1756428380783,9.02823216,215.47,215.3,123.48]
[1756428380784,4.12823216,215.39,215.3,4.1797]
[1756428380989,4.12823216,215.39,215.27,7.71]
[1756428381485,4.12823216,215.38,215.27,7.71]
[1756428381888,9.02823216,215.38,215.27,7.71]
[1756428382090,0.03536667,215.35,215.27,7.71]
[1756428382688,4.12823216,215.34,215.25,4.1806]
[1756428382893,9.02823216,215.34,215.21,72.756]
[1756428383191,4.12823216,215.33,215.25,4.1807]
[1756428383390,0.02952845,215.3,215.25,4.1807]
[1756428383995,0.02952845,215.3,215.21,7.71]
[1756428384296,0.02952845,215.3,215.21,72.7561]
[1756428384983,0.02952845,215.3,215.25,65.0342]
[1756428385187,0.02952845,215.3,215.26,65.0305]
[1756428385385,0.02952845,215.3,215.26,7.71]
[1756428385588,0.02952845,215.3,215.27,7.71]
[1756428385789,0.02952845,215.3,215.26,65.0312]
[1756428386189,0.02952845,215.3,215.24,7.71]
[1756428386787,0.02952845,215.3,215.19,118.65]
[1756428389095,0.02952845,215.3,215.2,7.71]
[1756428390599,0.02952845,215.3,215.15,319.77]
[1756428391003,6.61097664,215.29,215.15,319.77]
[1756428391201,0.03169926,215.25,215.15,319.77]
[1756428393296,6.61097664,215.21,215.08,7.71]
[1756428394203,0.03345051,215.17,215.08,7.71]
[1756428396899,6.64442715,215.17,215.08,7.71]
[1756428397492,0.03345051,215.17,215.08,7.71]
[1756428398208,0.03345051,215.17,215.09,127.3]
[1756428398705,0.03345051,215.17,215.1,7.75]
[1756428401510,5.09091529,215.33,215.21,65.0466]
[1756428401701,5.74751731,215.32,215.23,65.0401]
[1756428402004,2.5048513,215.31,215.22,7.75]
[1756428402205,2.50481416,215.3,215.22,7.75]
[1756428402401,4.95,215.36,215.22,7.75]
[1756428402603,5.68473993,215.35,215.27,4.1802]
[1756428402808,2.50654014,215.34,215.27,4.1802]
[1756428403002,2.50654014,215.33,215.26,4.1805]
[1756428403300,2.50654014,215.32,215.28,0.03067928]
[1756428403506,7.45694773,215.31,215.28,0.03067928]
[1756428403706,4.11278572,215.32,215.28,0.03067928]
[1756428403707,7.45694773,215.3,215.28,0.03067928]
[1756428403905,2.50709525,215.29,215.28,0.03067928]
[1756428404100,7.45709525,215.29,215.28,0.03067928]
[1756428404306,7.45709525,215.29,215.16,51.27]
[1756428404307,7.91709525,215.29,215.16,7.75]
[1756428404502,2.50709525,215.28,215.17,65.0582]
[1756428404703,2.50709525,215.27,215.17,65.0582]
[1756428404908,9.06278572,215.29,215.17,65.0582]
[1756428405108,2.50772472,215.28,215.17,65.0582]
[1756428405310,9.06278572,215.29,215.22,4.1812]
[1756428405510,2.50790868,215.28,215.22,4.1812]
[1756428405707,0.03256946,215.25,215.2,65.0489]
[1756428406011,6.946e-05,215.25,215.24,11.9309]
[1756428407308,6.946e-05,215.25,215.22,4.1813]
[1756428407508,6.946e-05,215.25,215.21,7.75]
[1756428407703,6.946e-05,215.25,215.2,0.03014032]
[1756428408712,6.946e-05,215.25,215.23,4.181]
[1756428408921,6.946e-05,215.25,215.24,7.75]
[1756428409103,4.11278572,215.39,215.26,65.0312]
[1756428409308,2.5081637,215.38,215.26,65.0312]
[1756428409507,2.5081637,215.37,215.26,65.0312]
[1756428409713,2.5081637,215.36,215.26,65.0312]
[1756428409912,4.11278572,215.39,215.28,72.7739]
[1756428410207,4.95,215.42,215.28,7.75]
[1756428410414,4.95,215.42,215.31,0.03370435]
[1756428411012,4.95,215.42,215.33,4.1792]
[1756428411315,2.50732725,215.41,215.28,7.75]
[1756428411514,4.95,215.42,215.28,7.75]
[1756428411809,2.50710017,215.41,215.35,0.03430193]
[1756428412010,4.95,215.39,215.35,0.03430193]
[1756428412509,9.1282,215.39,215.35,0.03430193]
[1756428412708,4.95,215.39,215.35,0.03430193]
[1756428413214,4.11278572,215.4,215.35,0.03430193]
[1756428413410,4.11278572,215.4,215.28,11.93]
[1756428413411,4.11278572,215.36,215.23,7.75]
[1756428413614,9.06278572,215.36,215.23,7.75]
[1756428413917,2.50737387,215.35,215.23,11.9311]
[1756428414113,9.06278572,215.36,215.23,11.9311]
[1756428414718,4.14557501,215.32,215.21,4.1815]
[1756428415016,4.11278572,215.28,215.18,7.75]
[1756428415618,0.03118875,215.25,215.18,7.75]
[1756428419113,6.61340289,215.22,215.15,5.15653838]
[1756428419418,4.95,215.21,215.05,7.75]
[1756428419810,4.98479825,215.21,215.05,7.75]
[1756428420015,4.95,215.21,215.05,7.75]
[1756428420215,2.51127742,215.2,215.05,7.75]
[1756428420416,0.03036784,215.15,215.05,7.75]
[1756428421415,0.03036784,215.15,215.0,5.15653838]
[1756428421612,4.95,215.12,214.99,7.75]
[1756428421813,6.61340289,215.09,214.99,7.75]
[1756428422012,0.03023423,215.08,214.99,7.75]
[1756428422214,4.98023423,215.08,214.93,7.75]
[1756428422414,6.61340289,215.05,214.93,7.75]
[1756428422814,0.03125751,215.01,214.93,7.75]
[1756428427017,6.6446604,215.01,214.89,312.1]
[1756428428416,6.6446604,215.01,214.9,7.28]
[1756428429011,0.03125751,215.01,214.9,7.28]
[1756428431417,312.28,215.12,215.02,65.1041]
[1756428431919,312.28,215.12,215.0,199.6277]
[1756428432311,312.28,215.12,215.03,65.1007]
[1756428432511,4.99,215.16,215.03,65.1007]
[1756428432924,4.99,215.16,215.07,0.03180307]
[1756428433319,4.99,215.16,215.08,4.1841]
[1756428434120,4.95,215.08,214.93,7.28]
[1756428434316,6.61340289,215.05,214.93,7.28]
[1756428434926,4.95,215.04,214.93,7.28]
[1756428435820,0.03019073,215.01,214.93,7.28]
[1756428437224,0.03019073,215.01,214.93,11.4669]
[1756428437420,0.03019073,215.01,214.93,7.28]
[1756428438019,0.03019073,215.01,214.97,4.1862]
[1756428438533,0.03019073,215.01,214.98,7.28]
[1756428438728,4.95,215.16,215.02,65.1039]
[1756428439029,6.61340289,215.19,215.05,72.375]
[1756428439224,6.61340289,215.19,215.05,199.595]
[1756428439426,6.61340289,215.19,215.09,4.1838]
[1756428439820,4.1821,215.18,215.09,4.1838]
[1756428440432,6.61340289,215.23,215.11,11.4634]
[1756428440726,6.61340289,215.25,215.11,7.28]
[1756428441231,4.1811,215.24,215.13,4.1831]
[1756428442333,4.95,215.26,215.13,65.0695]
[1756428442533,4.95,215.26,215.14,7.28]
[1756428442725,312.42,215.3,215.15,65.0647]
[1756428443534,4.1802,215.28,215.17,4.1823]
[1756428443727,4.1802,215.28,215.14,7.28]
[1756428444031,4.181,215.24,215.14,7.28]
[1756428444826,4.181,215.24,215.17,0.03146375]
[1756428445023,4.95,215.28,215.18,7.28]
[1756428447724,6.61340289,215.2,215.17,0.03146375]
[1756428447921,4.95,215.19,215.17,0.03146375]
[1756428449930,6.61340289,215.25,215.17,0.03146375]
[1756428450126,65.0228,215.29,215.17,7.31146375]
[1756428450331,4.95,215.27,215.17,0.03146375]
[1756428450529,4.95,215.27,215.15,7.28]
[1756428451132,4.95,215.27,215.19,0.03074272]
[1756428451434,9.1304,215.27,215.19,0.03074272]
[1756428451633,6.61340289,215.25,215.19,0.03074272]
[1756428451836,6.61340289,215.21,215.05,7.28]
[1756428452032,4.95,215.2,215.05,7.28]
[1756428452232,0.03108211,215.24,215.14,7.28]
[1756428452438,439.54,215.3,215.14,7.28]
[1756428452738,4.1803,215.28,215.17,4.1823]
[1756428453130,0.02983384,215.25,215.17,4.1823]
[1756428453431,0.02983384,215.25,215.14,11.4628]
[1756428454129,0.02983384,215.25,215.14,7.28]
[1756428454830,0.02983384,215.25,215.18,4.1821]
[1756428456131,0.02983384,215.25,215.15,4.1825]
[1756428456337,0.02983384,215.25,215.14,7.28]
[1756428457239,0.02983384,215.25,215.19,65.05]
[1756428457435,0.02983384,215.25,215.19,7.56]
[1756428457634,0.02983384,215.25,215.19,11.7417]
[1756428457834,0.02983384,215.25,215.14,134.66]
[1756428458445,0.02983384,215.25,215.16,4.1823]
[1756428458736,0.02983384,215.25,215.14,7.56]
[1756428459345,0.02983384,215.25,215.18,4.1821]
[1756428462046,0.02983384,215.25,215.17,7.56]
[1756428465747,0.02983384,215.25,215.15,127.04]
[1756428465748,0.02983384,215.25,215.19,7.56]
[1756428469661,0.02983384,215.25,215.13,7.56]
[1756428469857,0.02983384,215.25,215.13,134.56]
[1756428470052,4.11451299,215.23,215.13,7.56]
[1756428470253,0.0318087,215.21,215.13,7.56]
[1756428471159,0.0318087,215.21,215.04,7.56]
[1756428471356,0.0318087,215.21,215.03,4.11451299]
[1756428471357,0.0318087,215.21,215.06,7.56]
[1756428471558,4.94,215.22,215.06,7.56]
[1756428471756,0.03022954,215.16,215.06,7.56]
[1756428476757,0.03022954,215.16,215.07,7.56]
[1756428478869,0.03022954,215.16,215.09,4.11451299]
[1756428479167,0.03022954,215.16,215.1,7.56]
[1756428481864,0.03022954,215.16,215.04,134.22]
[1756428482067,0.03022954,215.16,215.04,126.66]
[1756428482368,4.94,215.19,215.05,7.56]
[1756428482564,0.03044741,215.12,215.05,7.56]
[1756428482970,0.03044741,215.12,215.08,7.56]
[1756428483165,0.03044741,215.12,215.07,4.11451299]
[1756428483370,0.03044741,215.12,215.08,7.56]
[1756428483866,0.03044741,215.12,215.07,4.11451299]
[1756428484066,0.03044741,215.12,215.08,7.56]
[1756428484464,4.741e-05,215.12,215.11,11.7435]
[1756428489574,4.741e-05,215.12,215.11,4.1835]
[1756428490174,4.741e-05,215.12,215.09,4.21868357]
[1756428490774,4.741e-05,215.12,215.1,4.1835]
[1756428491571,4.741e-05,215.12,215.09,0.03488357]
[1756428491772,0.46004741,215.12,215.09,0.03488357]
[1756428491977,4.5745604,215.12,215.09,0.03488357]
[1756428492174,0.46004741,215.12,215.09,0.03488357]
[1756428492368,4.741e-05,215.12,215.09,0.03488357]
[1756428500485,0.46004741,215.12,215.09,0.03488357]
[1756428500688,4.95,215.1,215.09,0.03488357]
[1756428502182,5.41,215.1,215.09,0.03488357]
[1756428503083,4.95,215.1,215.09,0.03488357]
[1756428503278,4.741e-05,215.12,215.09,0.03488357]
[1756428505178,4.95004741,215.12,215.09,0.03488357]
[1756428505383,4.741e-05,215.12,215.09,0.03488357]
[1756428506188,9.13344741,215.12,215.09,0.03488357]
[1756428506391,4.95,215.11,215.09,0.03488357]
[1756428507281,4.95,215.1,215.09,0.03488357]
[1756428507786,4.741e-05,215.12,215.09,0.03488357]
[1756428508089,4.95004741,215.12,215.09,0.03488357]
[1756428509188,4.741e-05,215.12,215.09,0.03488357]
[1756428509383,4.95004741,215.12,215.09,0.03488357]
[1756428509585,4.741e-05,215.12,215.09,0.03488357]
[1756428511586,4.95,215.1,215.09,0.03488357]
[1756428516889,4.741e-05,215.12,215.09,0.03488357]
[1756428518492,4.741e-05,215.12,215.1,4.1836]
[1756428518689,4.741e-05,215.12,215.09,0.03488357]
[1756428521293,4.95,215.11,215.09,0.03488357]
[1756428521498,4.741e-05,215.12,215.09,0.03488357]
[1756428524500,4.95,215.1,215.09,0.03488357]
[1756428525101,7.48258927,215.1,215.09,0.03488357]
[1756428525600,7.48258927,215.1,215.01,7.19]
[1756428525903,4.95,215.06,214.96,319.37]
[1756428526701,4.1847,215.05,214.97,4.1861]
[1756428526903,0.02988619,215.03,214.97,4.1861]
[1756428527593,4.21498619,215.03,214.96,7.19]
[1756428527796,0.02988619,215.03,214.96,7.19]
[1756428528601,4.21498619,215.03,214.97,4.1861]
[1756428529302,4.97988619,215.03,214.98,4.1859]
[1756428530003,4.97988619,215.03,214.98,11.3759]
[1756428530204,0.02988619,215.03,214.95,7.19]
[1756428530403,4.97988619,215.03,214.95,7.19]
[1756428531800,9.16508619,215.03,214.95,7.19]
[1756428532606,4.97988619,215.03,214.95,7.19]
[1756428533800,4.97988619,215.03,214.97,4.1861]
[1756428537306,9.16508619,215.03,214.95,11.3765]
[1756428538002,9.16508619,215.03,214.97,4.1862]
[1756428538398,9.100505,215.03,214.95,7.19]
[1756428538807,2.53367768,215.02,214.95,7.19]
[1756428539101,4.1857,215.0,214.95,7.19]
[1756428539608,6.65414997,214.99,214.87,7.19]
[1756428539907,4.1863,214.97,214.88,4.1879]
[1756428540300,0.03299015,214.95,214.88,4.1879]
[1756428540505,0.03299015,214.95,214.87,7.19]
[1756428540701,4.95,215.05,214.93,7.19]
[1756428540911,4.99,215.1,214.98,7.19]
[1756428541103,2.53281693,215.09,214.98,7.19]
[1756428541406,2.61694056,215.06,214.98,7.19]
[1756428541603,2.53281693,215.05,214.98,7.19]
[1756428541803,2.53281693,215.04,214.98,7.19]
[1756428542007,2.61694056,215.06,215.0,0.03071273]
[1756428542207,2.53305638,215.05,215.0,0.03071273]
[1756428542405,7.60694056,215.03,215.0,0.03071273]
[1756428543511,4.99,215.01,215.0,0.03071273]
[1756428543807,7.52316027,215.01,214.92,11.3772]
[1756428544008,2.61694056,214.98,214.92,7.19]
[1756428545005,5.02518994,214.97,214.92,7.19]
[1756428545308,2.61694056,214.94,214.86,7.19]
[1756428546109,0.03386519,214.92,214.86,7.19]
[1756428547608,2.61694056,214.98,214.87,7.74]
[1756428547807,2.61694056,214.98,214.87,7.77156652]
[1756428548001,2.61694056,215.01,214.89,2.61694056]
[1756428548205,7.62694056,215.04,214.93,7.74]
[1756428548803,7.62694056,215.04,214.96,0.03046847]
[1756428549804,5.04,214.97,214.96,0.03046847]
[1756428550214,5.04,214.97,214.88,7.74]
[1756428550507,5.04,214.97,214.94,0.03085038]
[1756428551909,4.1861,214.98,214.94,0.03085038]
[1756428552212,5.04,214.97,214.94,0.03085038]
[1756428552512,9.2064,214.97,214.94,0.03085038]
[1756428552907,4.1864,214.97,214.94,0.03085038]
[1756428553211,5.02,214.96,214.94,0.03085038]
[1756428554808,8.31326439,214.99,214.94,0.03085038]
[1756428555014,4.12746439,214.99,214.94,0.03085038]
[1756428555412,5.02,214.98,214.94,0.03085038]
[1756428555617,4.12746439,214.99,214.94,0.03085038]
[1756428556412,5.02,214.98,214.94,0.03085038]
[1756428557010,8.31336439,214.99,214.94,0.03085038]
[1756428557408,5.02,214.98,214.94,0.03085038]
[1756428557808,5.02,214.97,214.94,0.03085038]
[1756428559720,4.1862,214.98,214.94,0.03085038]
[1756428559913,5.02,214.96,214.94,0.03085038]
[1756428562921,4.1864,214.97,214.94,0.03085038]
[1756428563123,5.02,214.98,214.94,0.03085038]
[1756428563314,4.12746439,214.99,214.94,0.03085038]
[1756428563516,2.52680208,214.98,214.94,0.03085038]
[1756428563716,4.12746439,214.95,214.83,7.74]
[1756428564017,5.02,214.94,214.83,7.74]
[1756428565120,0.03065558,214.91,214.83,7.74]
[1756428566223,0.03065558,214.91,214.85,7.74]
[1756428566817,0.03065558,214.91,214.86,4.1883]
[1756428567022,5.05065558,214.91,214.86,4.1883]
[1756428567822,0.03065558,214.91,214.84,11.9287]
[1756428569321,0.03065558,214.91,214.84,65.1586]
[1756428569626,0.03065558,214.91,214.85,7.74]
[1756428570122,0.03065558,214.91,214.88,11.9279]
[1756428573038,0.03065558,214.91,214.8,65.1701]
[1756428573239,2.61999365,214.9,214.81,7.74]
[1756428573636,0.03065558,214.91,214.85,4.1884]
[1756428573829,2.65064923,214.91,214.85,4.1884]
[1756428574238,2.65064923,214.91,214.84,7.74]
[1756428574437,0.03065558,214.91,214.84,7.74]
[1756428574635,2.65064923,214.91,214.84,7.74]
[1756428575836,2.61999365,214.88,214.78,7.74]
[1756428576642,0.03446751,214.85,214.78,7.74]
[1756428577240,0.03446751,214.85,214.78,2.61999365]
[1756428577438,0.03446751,214.85,214.79,7.17]
[1756428578640,5.03,214.99,214.84,2.61999365]
[1756428578846,5.14927556,214.98,214.87,2.61999365]
[1756428579046,2.52928191,214.97,214.88,7.17]
[1756428579241,2.61999365,214.98,214.88,7.17]
[1756428579442,2.52937387,214.97,214.88,7.17]
[1756428579641,2.61999365,214.98,214.88,7.17]
[1756428579842,2.52937406,214.97,214.9,0.03062483]
[1756428580043,100.45690711,215.04,214.9,0.03062483]
[1756428580244,100.45690711,215.04,214.91,7.17]
[1756428580245,2.61999365,215.01,214.91,7.17]
[1756428580448,2.52993963,215.0,214.91,7.17]
[1756428580742,2.61999365,215.01,214.94,0.03164228]
[1756428580946,2.5297152,215.0,214.94,0.03164228]
[1756428581247,2.61999365,215.01,214.94,0.03164228]
[1756428581447,2.53027766,215.0,214.94,0.03164228]
[1756428581650,2.61999365,215.01,214.94,7.20164228]
[1756428581846,5.03,215.03,214.94,7.20164228]
[1756428582047,2.61999365,215.01,214.94,7.20164228]
[1756428582344,0.03087771,215.0,214.94,7.20164228]
[1756428583348,0.03087771,215.0,214.95,7.17]
[1756428583747,0.03087771,215.0,214.94,0.03164228]
[1756428583940,0.03087771,215.0,214.96,65.1225]
[1756428584144,0.03087771,215.0,214.94,65.15944228]
[1756428584444,0.03087771,215.0,214.95,7.17]
[1756428584741,0.03087771,215.0,214.94,2.65163593]
[1756428584949,0.03087771,215.0,214.94,7.20164228]
[1756428587944,2.61999365,214.98,214.94,7.20164228]
[1756428588447,7.64999365,214.98,214.94,7.20164228]
[1756428588850,7.64999365,214.98,214.94,0.03164228]
[1756428589048,0.03087771,215.0,214.94,7.20164228]
[1756428589246,2.65087136,215.0,214.94,7.20164228]
[1756428589740,2.65087136,215.0,214.94,11.38824228]
[1756428589945,0.03087771,215.0,214.94,7.20164228]
[1756428590350,0.03087771,215.0,214.96,4.1864]
[1756428590848,0.03087771,215.0,214.97,7.17]
[1756428593852,0.03087771,215.0,214.95,7.17]
[1756428594148,0.03087771,215.0,214.94,0.03164228]
[1756428594350,0.03087771,215.0,214.95,7.17]
[1756428594749,5.03,215.1,214.98,65.116]
[1756428594952,2.5352129,215.09,214.99,7.17]
[1756428595151,7.64999365,215.1,214.99,7.17]
[1756428595353,2.61999365,215.07,215.01,4.1854]
[1756428595549,2.61999365,215.07,214.99,7.17]
[1756428595949,2.61999365,215.07,214.99,11.3558]
[1756428596151,2.61999365,215.07,215.01,0.03559471]
[1756428596746,2.61999365,215.09,215.01,0.03559471]
[1756428596950,2.53306023,215.08,215.02,7.17]
[1756428597156,2.61999365,215.09,215.02,7.17]
[1756428597355,2.53228078,215.08,215.02,7.17]
[1756428597557,2.61999365,215.09,215.02,7.17]
[1756428600255,5.03,215.14,215.02,7.17]
[1756428600451,2.61999365,215.1,215.02,7.17]
[1756428600855,2.61999365,215.1,215.04,0.03408544]
[1756428602552,5.03,215.06,215.04,0.03408544]
[1756428602758,2.61999365,215.07,215.04,0.03408544]
[1756428603859,7.64999365,215.1,215.04,0.03408544]
[1756428604964,108.12838919,215.15,215.04,7.20408544]
[1756428605159,110.74838284,215.15,215.04,9.82407909]
[1756428605356,110.74838284,215.15,215.05,7.17]
[1756428605861,108.12838919,215.15,215.05,7.17]
[1756428606160,2.61999365,215.14,215.05,7.17]
[1756428606361,2.61999365,215.11,215.05,7.17]
[1756428606566,7.67999365,215.08,215.04,0.03408544]
[1756428606770,2.61999365,215.07,215.04,0.03408544]
[1756428607468,2.61999365,215.1,215.04,0.03408544]
[1756428608166,2.61999365,215.14,215.05,7.75]
[1756428608761,105.71838284,215.15,215.05,7.75]
[1756428610067,103.09838919,215.15,215.05,7.75]
[1756428610268,5.06,215.24,215.08,7.75]
[1756428610563,2.61999365,215.21,215.08,7.75]
[1756428610872,5.06,215.24,215.11,7.75]
[1756428611163,7.67999365,215.24,215.13,7.75]
[1756428611867,7.67999365,215.24,215.16,0.03036124]
[1756428612263,5.06,215.24,215.16,0.03036124]
[1756428612458,2.61999365,215.23,215.16,0.03036124]
[1756428614669,5.06,215.24,215.16,0.03036124]
[1756428614868,315.15999365,215.25,215.16,0.03036124]
[1756428615063,2.61999365,215.25,215.16,0.03036124]
[1756428615270,7.65999365,215.25,215.16,0.03036124]
[1756428617170,5.04,215.25,215.16,0.03036124]
[1756428617574,5.04,215.17,215.07,7.75]
[1756428617767,2.61999365,215.15,215.07,7.75]
[1756428617969,2.61999365,215.17,215.07,7.75]
[1756428618172,2.61999365,215.2,215.08,7.75]
[1756428618977,2.61999365,215.2,215.12,7.78101814]
[1756428620075,2.61999365,215.21,215.12,7.78101814]
[1756428620278,5.04,215.22,215.12,7.78101814]
[1756428620469,2.61999365,215.24,215.12,7.78101814]
[1756428621472,2.61999365,215.21,215.12,7.78101814]
[1756428621874,2.61999365,215.21,215.12,7.75]
[1756428622179,2.61999365,215.21,215.14,0.03421734]
[1756428622375,2.61999365,215.2,215.14,0.03421734]
[1756428624780,7.65999365,215.2,215.14,0.03421734]
[1756428625075,107.62411094,215.27,215.14,0.03421734]
[1756428625076,5.04,215.15,215.14,0.03421734]
[1756428625477,5.04,215.15,215.06,7.75]
[1756428625678,2.61999365,215.13,215.12,0.03154374]
[1756428625981,7.65999365,215.13,215.06,7.75]
[1756428626180,2.61999365,215.1,215.06,7.75]
[1756428626380,2.61999365,215.1,215.01,7.75]
[1756428628280,5.04,215.11,215.01,7.75]
[1756428629980,2.61999365,215.09,215.01,7.75]
[1756428630584,2.61999365,215.06,214.97,7.75]
[1756428631381,7.65999365,215.06,214.97,7.75]
[1756428633281,5.04,215.06,214.97,7.75]
[1756428634382,2.61999365,215.07,214.97,7.75]
[1756428634576,7.67999365,215.1,214.99,7.75]
[1756428634782,2.61999365,215.13,214.99,7.75]
[1756428634983,2.52512862,215.12,214.99,7.75]
[1756428635187,2.61999365,215.13,214.99,7.75]
[1756428635387,5.06,215.14,214.99,7.75]
[1756428635583,5.14567728,215.13,215.02,7.75]
[1756428635784,2.61999365,215.13,215.02,7.75]
[1756428637394,7.55710738,215.12,215.02,7.75]
[1756428637682,5.03,215.09,214.96,312.46]
[1756428637888,5.03,215.09,214.98,7.17]
[1756428638683,0.03530566,215.06,214.98,7.17]
[1756428640584,0.03530566,215.06,215.02,2.61999365]
[1756428640785,2.61999365,215.15,215.03,7.17]
[1756428641088,5.06,215.18,215.06,7.17]
[1756428641285,5.06,215.18,215.09,7.17]
[1756428641891,5.06,215.15,215.03,2.61999365]
[1756428642084,5.06,215.15,215.11,0.029901]
[1756428642085,2.61999365,215.13,215.11,0.029901]
[1756428642285,5.06,215.12,215.11,0.029901]
[1756428646397,5.06,215.16,215.11,7.199901]
[1756428647591,5.06,215.14,215.11,0.029901]
[1756428647785,4.12094248,215.16,215.11,0.029901]
[1756428648288,2.54055022,215.15,215.11,0.029901]
[1756428648492,5.06,215.15,215.11,0.029901]
[1756428648788,4.12094248,215.16,215.11,0.029901]
[1756428649193,5.06,215.15,215.11,0.029901]
[1756428649395,4.12094248,215.16,215.11,0.029901]
[1756428649593,5.06,215.14,215.11,0.029901]
[1756428649791,5.06,215.15,215.11,0.029901]
[1756428650191,4.12094248,215.16,215.11,0.029901]
[1756428650391,5.06,215.14,215.11,0.029901]
[1756428650692,4.12094248,215.16,215.11,0.029901]
[1756428650893,2.54092916,215.15,215.11,0.029901]
[1756428651090,4.12094248,215.16,215.11,0.029901]
[1756428651286,5.06,215.14,215.11,0.029901]
[1756428651594,5.06,215.15,215.11,0.029901]
[1756428652195,4.12094248,215.16,215.11,0.029901]
[1756428652401,5.06,215.14,215.11,0.029901]
[1756428652692,4.12094248,215.16,215.11,0.029901]
[1756428652997,5.06,215.14,215.11,0.029901]
[1756428653296,4.12094248,215.16,215.11,0.029901]
[1756428653595,2.54135215,215.15,215.11,0.029901]
[1756428653789,2.54135215,215.14,215.11,0.029901]
[1756428653986,5.06,215.15,215.11,0.029901]
[1756428654196,2.54135234,215.14,215.11,0.029901]
[1756428654399,4.12094248,215.16,215.11,0.029901]
[1756428654598,2.54135121,215.15,215.11,0.029901]
[1756428654799,5.06,215.13,215.11,0.029901]
[1756428655201,9.18094248,215.17,215.11,0.029901]
[1756428655394,5.06,215.15,215.11,0.029901]
[1756428655594,9.18094248,215.17,215.11,0.029901]
[1756428655797,5.06,215.15,215.11,0.029901]
[1756428655998,5.06,215.16,215.11,0.029901]
[1756428656194,5.06,215.14,215.11,0.029901]
[1756428656893,5.06,215.12,215.11,0.029901]
[1756428660400,9.18094248,215.19,215.11,0.029901]
[1756428660596,2.5444916,215.18,215.11,0.029901]
[1756428660903,0.03051706,215.14,215.12,7.17]
[1756428661299,5.06,215.13,215.11,0.029901]
[1756428661901,0.03051706,215.14,215.11,0.029901]
[1756428663407,5.06,215.12,215.11,0.029901]
[1756428663608,7.60880016,215.12,215.0,7.17]
[1756428663806,4.12094248,215.1,215.0,7.17]
[1756428664104,2.54880016,215.09,215.0,7.17]
[1756428664306,2.54880016,215.08,215.0,7.17]
[1756428664506,2.54880016,215.07,215.0,7.17]
[1756428664706,2.54880016,215.06,215.0,7.17]
[1756428664905,0.03044556,215.06,215.0,7.17]
[1756428666905,0.03044556,215.06,214.99,5.18796603]
[1756428667099,0.03044556,215.06,215.0,10.43675597]
[1756428668008,0.03044556,215.06,215.0,2.61675597]
[1756428668204,5.11044556,215.06,214.97,5.18796603]
[1756428668810,2.54876225,215.05,214.96,13.00796603]
[1756428669010,5.11044556,215.06,214.96,13.00796603]
[1756428669211,2.54890647,215.05,214.96,13.00796603]
[1756428669512,5.11044556,215.06,214.96,13.00796603]
[1756428669811,6.73385173,215.05,214.98,4.186]
[1756428670011,4.1848,215.05,214.98,4.186]
[1756428671212,4.1853,215.02,214.96,13.00796603]
[1756428671408,4.1853,215.02,214.96,7.82]
[1756428671907,2.61675597,215.1,214.96,7.804722]
[1756428672114,0.03506749,215.01,215.0,7.82]
[1756428672311,5.08,215.11,215.0,7.82]
[1756428672510,2.54845041,215.1,215.01,0.03490514]
[1756428672713,2.54845041,215.09,215.01,0.03490514]
[1756428672908,5.08,215.11,215.01,0.03490514]
[1756428673109,2.61675597,215.14,215.03,7.82]
[1756428673305,2.53286824,215.13,215.03,7.82]